fUSD/lending_fUSD_20250507
["ID","MTS","AMOUNT","RATE_DAILY","PERIOD"]
[360155178,1746580243153,-450.0,0.00019579,2]
[360155179,1746580243162,-450.0,0.00019579,2]
[360155180,1746580243172,-450.0,0.00019579,2]
[360155181,1746580243181,-450.0,0.00019579,2]
[360155182,1746580243191,-450.0,0.00019579,2]
[360155184,1746580243200,-595.76053213,0.00019579,2]
[360155186,1746580243210,-454.90307283,0.00019579,2]
[360155188,1746580243219,-450.0,0.00019579,2]
[360155190,1746580243229,-450.0,0.00019579,2]
[360155193,1746580243239,-470.0,0.00019579,2]
[360155195,1746580243248,-450.0,0.00019579,2]
[360155197,1746580243257,-450.0,0.00019579,2]
[360155199,1746580243267,-470.0,0.00019579,2]
[360155201,1746580243276,-450.0,0.00019579,2]
[360155203,1746580243285,-489.31,0.00019579,2]
[360155205,1746580243294,-450.0,0.00019579,2]
[360155207,1746580243303,-540.22,0.00019579,2]
[360155209,1746580243312,-540.22,0.00019579,2]
[360155211,1746580243321,-450.0,0.00019579,2]
[360155213,1746580243330,-470.0,0.00019579,2]
[360155215,1746580243339,-470.0,0.00019579,2]
[360155217,1746580243348,-470.0,0.00019579,2]
[360155218,1746580243358,-450.0,0.00019579,2]
[360155219,1746580243367,-450.0,0.00019579,2]
[360155220,1746580243377,-450.0,0.00019579,2]
[360155221,1746580243386,-447.19073397,0.00019579,2]
[360155222,1746580243395,-450.0,0.00019579,2]
[360155223,1746580243404,-450.0,0.00019579,2]
[360155224,1746580243413,-582.17712824,0.00019579,2]
[360155225,1746580243422,-450.0,0.00019579,2]
[360155226,1746580243431,-558.22,0.00019579,2]
[360155227,1746580243440,-558.22,0.00019579,2]
[360155228,1746580243449,-151.79269557,0.00019579,2]
[360155229,1746580243459,-450.0,0.00019579,2]
[360155230,1746580243473,-450.0,0.00019579,2]
[360155231,1746580243483,-450.0,0.00019579,2]
[360155232,1746580243492,-523.25540005,0.00019579,2]
[360155233,1746580243501,-470.0,0.00019579,2]
[360155234,1746580243512,-450.0,0.00019579,2]
[360155235,1746580243521,-450.0,0.00019579,2]
[360155236,1746580243530,-450.0,0.00019579,2]
[360155237,1746580243539,-450.0,0.00019579,2]
[360155238,1746580243549,-450.0,0.00019579,2]
[360155239,1746580243559,-450.0,0.00019579,2]
[360155240,1746580243569,-450.0,0.00019579,2]
[360155241,1746580243578,-580.1,0.00019579,2]
[360155242,1746580243587,-580.1,0.00019579,2]
[360155243,1746580243597,-470.0,0.00019579,2]
[360155244,1746580243606,-509.51694568,0.00019579,2]
[360155245,1746580243616,-450.0,0.00019579,2]
[360155246,1746580243625,-450.0,0.00019579,2]
[360155247,1746580243635,-450.0,0.00019579,2]
[360155248,1746580243644,-450.0,0.00019579,2]
[360155249,1746580243653,-470.0,0.00019579,2]
[360155250,1746580243662,-470.0,0.00019579,2]
[360155251,1746580243672,-450.0,0.00019579,2]
[360155252,1746580243681,-450.0,0.00019579,2]
[360155253,1746580243690,-450.0,0.00019579,2]
[360155254,1746580243699,-450.0,0.00019579,2]
[360155255,1746580243708,-480.44474905,0.00019579,2]
[360155256,1746580243717,-450.0,0.00019579,2]
[360155257,1746580243727,-450.0,0.00019579,2]
[360155258,1746580243736,-470.0,0.00019579,2]
[360155259,1746580243747,-470.0,0.00019579,2]
[360155260,1746580243756,-910.38,0.00019579,2]
[360155261,1746580243765,-450.0,0.00019579,2]
[360155262,1746580243774,-450.0,0.00019579,2]
[360155263,1746580243783,-450.0,0.00019579,2]
[360155264,1746580243792,-503.58878925,0.00019579,2]
[360155265,1746580243801,-450.0,0.00019579,2]
[360155266,1746580243811,-750.62,0.00019579,2]
[360155267,1746580244028,-509.69688529,0.00019579,2]
[360155268,1746580244037,-450.0,0.00019579,2]
[360155269,1746580244047,-450.0,0.00019579,2]
[360155270,1746580244057,-450.0,0.00019579,2]
[360155271,1746580244066,-450.0,0.00019579,2]
[360155272,1746580244076,-450.0,0.00019579,2]
[360155273,1746580244085,-509.08129135,0.00019579,2]
[360155274,1746580244096,-450.0,0.00019579,2]
[360155275,1746580244105,-450.0,0.00019579,2]
[360155276,1746580244222,-462.73,0.00019579,2]
[360155277,1746580244232,-464.88929054,0.00019579,2]
[360155278,1746580244242,-453.6463598,0.00019579,2]
[360155279,1746580244251,-450.0,0.00019579,2]
[360155280,1746580244261,-470.0,0.00019579,2]
[360155281,1746580244270,-527.91781454,0.00019579,2]
[360155282,1746580244279,-450.0,0.00019579,2]
[360155283,1746580244289,-470.0,0.00019579,2]
[360155284,1746580244299,-450.0,0.00019579,2]
[360155285,1746580244309,-450.0,0.00019579,2]
[360155286,1746580244319,-931.92,0.00019579,2]
[360155287,1746580244328,-567.20567513,0.00019579,2]
[360155288,1746580244337,-450.0,0.00019579,2]
[360155289,1746580244348,-450.0,0.00019579,2]
[360155290,1746580244357,-450.0,0.00019579,2]
[360155291,1746580244366,-373.37,0.00019579,2]
[360155292,1746580244375,-456.24817166,0.00019579,2]
[360155293,1746580244384,-450.0,0.00019579,2]
[360155294,1746580244393,-450.0,0.00019579,2]
[360155295,1746580244402,-455.25161023,0.00019579,2]
[360155296,1746580244411,-457.21247579,0.00019579,2]
[360155297,1746580244421,-450.0,0.00019579,2]
[360155298,1746580244430,-472.01307456,0.00019579,2]
[360155299,1746580244442,-501.51676011,0.00019579,2]
[360155300,1746580244452,-973.77,0.00019579,2]
[360155301,1746580244466,-973.77,0.00019579,2]
[360155302,1746580244475,-450.0,0.00019579,2]
[360155303,1746580244485,-450.0,0.00019579,2]
[360155304,1746580244494,-450.0,0.00019579,2]
[360155305,1746580244503,-471.67298451,0.00019579,2]
[360155306,1746580244512,-740.39,0.00019579,2]
[360155307,1746580244522,-450.0,0.00019579,2]
[360155308,1746580244531,-450.0,0.00019579,2]
[360155309,1746580244540,-450.0,0.00019579,2]
[360155310,1746580244550,-470.05,0.00019579,2]
[360155311,1746580244559,-470.9194111,0.00019579,2]
[360155312,1746580244568,-1020.35,0.00019579,2]
[360155313,1746580244577,-1020.35,0.00019579,2]
[360155314,1746580244587,-450.0,0.00019579,2]
[360155315,1746580244597,-450.0,0.00019579,2]
[360155316,1746580244605,-450.0,0.00019579,2]
[360155317,1746580244614,-450.0,0.00019579,2]
[360155318,1746580244623,-450.0,0.00019579,2]
[360155319,1746580244633,-509.07284344,0.00019579,2]
[360155320,1746580244643,-450.0,0.00019579,2]
[360155321,1746580244652,-1051.87,0.00019579,2]
[360155322,1746580244661,-1051.87,0.00019579,2]
[360155323,1746580244671,-450.0,0.00019579,2]
[360155324,1746580244680,-470.0,0.00019579,2]
[360155325,1746580244689,-17.04368659,0.00019579,2]
[360155326,1746580244713,-432.95631341,0.00019579,2]
[360155327,1746580244722,-450.0,0.00019579,2]
[360155328,1746580244731,-165.38764939,0.00019579,2]
[360155329,1746580244740,-470.0,0.00019579,2]
[360155330,1746580244749,-450.0,0.00019579,2]
[360155331,1746580244759,-450.0,0.00019579,2]
[360155332,1746580244768,-470.0,0.00019579,2]
[360155333,1746580244777,-450.0,0.00019579,2]
[360155334,1746580244786,-1068.72,0.00019579,2]
[360155335,1746580244795,-1068.72,0.00019579,2]
[360155336,1746580244804,-450.0,0.00019579,2]
[360155337,1746580244813,-450.0,0.00019579,2]
[360155338,1746580244822,-661.7,0.00019579,2]
[360155339,1746580244831,-450.0,0.00019579,2]
[360155340,1746580244840,-545.48805344,0.00019579,2]
[360155341,1746580244849,-490.0,0.00019579,2]
[360155342,1746580244858,-527.0,0.00019579,2]
[360155343,1746580244867,-450.0,0.00019579,2]
[360155344,1746580244883,-154.9719065,0.00019579,2]
[360155345,1746580244902,-450.0,0.00019579,2]
[360155346,1746580244919,-500.0,0.00019579,2]
[360155347,1746580244939,-179.41342988,0.00019579,2]
[360155348,1746580244955,-500.0,0.00019579,2]
[360155349,1746580244971,-450.0,0.00019579,2]
[360155350,1746580244989,-450.0,0.00019579,2]
[360155351,1746580245008,-470.0,0.00019579,2]
[360155352,1746580245028,-450.0,0.00019579,2]
[360155353,1746580245045,-450.0,0.00019579,2]
[360155354,1746580245064,-511.6,0.00019579,2]
[360155355,1746580245081,-450.0,0.00019579,2]
[360155356,1746580245094,-450.0,0.00019579,2]
[360155357,1746580245113,-200.0,0.00019579,2]
[360155358,1746580245125,-450.0,0.00019579,2]
[360155359,1746580245143,-1217.22,0.00019579,2]
[360155360,1746580245156,-470.0,0.00019579,2]
[360155361,1746580245171,-450.0,0.00019579,2]
[360155362,1746580245185,-1217.22,0.00019579,2]
[360155363,1746580245200,-555.26,0.00019579,2]
[360155364,1746580245214,-450.0,0.00019579,2]
[360155365,1746580245228,-752.62,0.00019579,2]
[360155366,1746580245242,-752.62,0.00019579,2]
[360155367,1746580245257,-1696.41,0.00019579,2]
[360155368,1746580245272,-520.0,0.00019579,2]
[360155369,1746580245285,-450.0,0.00019579,2]
[360155370,1746580245300,-450.0,0.00019579,2]
[360155371,1746580245315,-450.0,0.00019579,2]
[360155372,1746580245330,-700.17,0.00019579,2]
[360155373,1746580245345,-450.0,0.00019579,2]
[360155374,1746580245360,-700.17,0.00019579,2]
[360155375,1746580245375,-425.44886503,0.00019579,2]
[360155376,1746580245389,-450.0,0.00019579,2]
[360155377,1746580245405,-450.0,0.00019579,2]
[360155378,1746580245420,-435.80035699,0.00019579,2]
[360155379,1746580245434,-606.25,0.00019579,2]
[360155380,1746580245449,-451.76,0.00019579,2]
[360155381,1746580245465,-451.76,0.00019579,2]
[360155382,1746580245480,-450.0,0.00019579,2]
[360155383,1746580245494,-450.0,0.00019579,2]
[360155384,1746580245509,-450.0,0.00019579,2]
[360155385,1746580245524,-450.0,0.00019579,2]
[360155386,1746580245538,-450.0,0.00019579,2]
[360155387,1746580245555,-450.0,0.00019579,2]
[360155388,1746580245570,-450.0,0.00019579,2]
[360155389,1746580245585,-562.23,0.00019579,2]
[360155390,1746580245600,-1135.46,0.00019579,2]
[360155391,1746580245617,-450.0,0.00019579,2]
[360155392,1746580245633,-450.0,0.00019579,2]
[360155393,1746580245649,-450.0,0.00019579,2]
[360155394,1746580245664,-470.0,0.00019579,2]
[360155395,1746580245678,-450.0,0.00019579,2]
[360155396,1746580245693,-450.0,0.00019579,2]
[360155397,1746580245709,-450.0,0.00019579,2]
[360155398,1746580245725,-450.0,0.00019579,2]
[360155399,1746580245741,-2040.53,0.00019579,2]
[360155400,1746580245756,-1544.29,0.00019579,2]
[360155401,1746580245771,-2449.84,0.00019579,2]
[360155402,1746580245785,-2449.84,0.00019579,2]
[360155403,1746580245799,-450.0,0.00019579,2]
[360155404,1746580245815,-547.39,0.00019579,2]
[360155405,1746580245829,-556.36,0.00019579,2]
[360155406,1746580245844,-450.0,0.00019579,2]
[360155407,1746580245855,-450.0,0.00019579,2]
[360155408,1746580245864,-545.26996945,0.00019579,2]
[360155409,1746580245874,-536.06,0.00019579,2]
[360155410,1746580245883,-536.06,0.00019579,2]
[360155411,1746580245892,-450.0,0.00019579,2]
[360155413,1746580245902,-1867.13,0.00019579,2]
[360155414,1746580246097,-1867.13,0.00019579,2]
[360155417,1746580246107,-450.0,0.00019579,2]
[360155418,1746580246116,-741.62,0.00019579,2]
[360155419,1746580246126,-2239.46,0.00019579,2]
[360155420,1746580246135,-2239.46,0.00019579,2]
[360155421,1746580246144,-2296.99,0.00019579,2]
[360155422,1746580246154,-450.0,0.00019579,2]
[360155423,1746580246163,-450.0,0.00019579,2]
[360155424,1746580246173,-456.85,0.00019579,2]
[360155425,1746580246182,-1883.73,0.00019579,2]
[360155426,1746580246192,-1883.73,0.00019579,2]
[360155427,1746580246201,-450.0,0.00019579,2]
[360155428,1746580246210,-450.0,0.00019579,2]
[360155429,1746580246219,-1146.92,0.00019579,2]
[360155430,1746580246229,-1146.92,0.00019579,2]
[360155431,1746580246241,-540.05878867,0.00019579,2]
[360155432,1746580246251,-826.09,0.00019579,2]
[360155433,1746580246260,-450.0,0.00019579,2]
[360155434,1746580246270,-450.0,0.00019579,2]
[360155435,1746580246279,-450.0,0.00019579,2]
[360155436,1746580246288,-503.42922744,0.00019579,2]
[360155437,1746580246296,-450.0,0.00019579,2]
[360155438,1746580246307,-1160.8,0.00019579,2]
[360155439,1746580246316,-1160.8,0.00019579,2]
[360155440,1746580246326,-1269.36,0.00019579,2]
[360155441,1746580246335,-1328.15,0.00019579,2]
[360155442,1746580246344,-450.0,0.00019579,2]
[360155443,1746580246354,-1328.15,0.00019579,2]
[360155444,1746580246363,-450.0,0.00019579,2]
[360155445,1746580246372,-520.93741885,0.00019579,2]
[360155446,1746580246382,-421.50056753,0.00019579,2]
[360155447,1746580246391,-450.0,0.00019579,2]
[360155448,1746580246400,-450.0,0.00019579,2]
[360155449,1746580246410,-450.0,0.00019579,2]
[360155450,1746580246419,-450.0,0.00019579,2]
[360155451,1746580246428,-1952.69,0.00019579,2]
[360155452,1746580246437,-450.0,0.00019579,2]
[360155453,1746580246446,-1252.6,0.00019579,2]
[360155454,1746580246456,-503.31125843,0.00019579,2]
[360155455,1746580246468,-450.0,0.00019579,2]
[360155456,1746580246477,-450.0,0.00019579,2]
[360155457,1746580246486,-470.0,0.00019579,2]
[360155458,1746580246495,-450.0,0.00019579,2]
[360155459,1746580246505,-450.0,0.00019579,2]
[360155460,1746580246514,-450.0,0.00019579,2]
[360155461,1746580246523,-470.0,0.00019579,2]
[360155462,1746580246533,-454.34234826,0.00019579,2]
[360155463,1746580246544,-450.0,0.00019579,2]
[360155464,1746580246554,-2178.97,0.00019579,2]
[360155465,1746580246564,-470.0,0.00019579,2]
[360155466,1746580246573,-490.0,0.00019579,2]
[360155467,1746580246583,-1932.25,0.00019579,2]
[360155468,1746580246592,-610.39,0.00019579,2]
[360155469,1746580246600,-610.39,0.00019579,2]
[360155470,1746580246609,-613.17,0.00019579,2]
[360155471,1746580246618,-613.17,0.00019579,2]
[360155472,1746580246627,-450.0,0.00019579,2]
[360155473,1746580246636,-450.0,0.00019579,2]
[360155474,1746580246646,-221.15,0.00019579,2]
[360155475,1746580246656,-490.0,0.00019579,2]
[360155476,1746580246666,-450.0,0.00019579,2]
[360155477,1746580246675,-450.0,0.00019579,2]
[360155478,1746580246684,-1986.7,0.00019579,2]
[360155479,1746580246693,-450.0,0.00019579,2]
[360155480,1746580246702,-448.34160954,0.00019579,2]
[360155481,1746580246712,-584.56,0.00019579,2]
[360155482,1746580246722,-584.56,0.00019579,2]
[360155483,1746580246731,-450.0,0.00019579,2]
[360155484,1746580246740,-450.0,0.00019579,2]
[360155485,1746580246750,-450.0,0.00019579,2]
[360155486,1746580246759,-450.0,0.00019579,2]
[360155487,1746580246769,-688.6,0.00019579,2]
[360155488,1746580246778,-450.0,0.00019579,2]
[360155489,1746580246787,-1928.25,0.00019579,2]
[360155490,1746580246796,-450.0,0.00019579,2]
[360155491,1746580246805,-450.0,0.00019579,2]
[360155492,1746580246814,-450.0,0.00019579,2]
[360155493,1746580246824,-1395.37,0.00019579,2]
[360155494,1746580246833,-559.69475469,0.00019579,2]
[360155495,1746580246842,-1395.37,0.00019579,2]
[360155496,1746580246851,-450.0,0.00019579,2]
[360155497,1746580246861,-450.0,0.00019579,2]
[360155498,1746580246870,-450.0,0.00019579,2]
[360155499,1746580246879,-450.0,0.00019579,2]
[360155500,1746580246888,-450.0,0.00019579,2]
[360155501,1746580246898,-623.49,0.00019579,2]
[360155502,1746580246907,-623.49,0.00019579,2]
[360155503,1746580246916,-450.0,0.00019579,2]
[360155504,1746580246926,-450.0,0.00019579,2]
[360155505,1746580246935,-450.0,0.00019579,2]
[360155506,1746580246944,-2245.31,0.00019579,2]
[360155507,1746580246954,-450.0,0.00019579,2]
[360155508,1746580246963,-450.0,0.00019579,2]
[360155509,1746580246972,-547.9,0.00019579,2]
[360155510,1746580246981,-547.9,0.00019579,2]
[360155511,1746580246993,-450.0,0.00019579,2]
[360155512,1746580247002,-450.0,0.00019579,2]
[360155513,1746580247013,-450.0,0.00019579,2]
[360155514,1746580247022,-705.48,0.00019579,2]
[360155515,1746580247031,-705.48,0.00019579,2]
[360155516,1746580247040,-450.0,0.00019579,2]
[360155517,1746580247049,-450.0,0.00019579,2]
[360155518,1746580247059,-528.02824913,0.00019579,2]
[360155519,1746580247069,-342.65,0.00019579,2]
[360155520,1746580247078,-450.0,0.00019579,2]
[360155521,1746580247087,-450.0,0.00019579,2]
[360155522,1746580247098,-743.16,0.00019579,2]
[360155523,1746580247107,-743.16,0.00019579,2]
[360155524,1746580247116,-450.0,0.00019579,2]
[360155525,1746580247126,-510.0,0.00019579,2]
[360155526,1746580247135,-976.06,0.00019579,2]
[360155527,1746580247145,-450.0,0.00019579,2]
[360155528,1746580247154,-450.0,0.00019579,2]
[360155529,1746580247163,-450.0,0.00019579,2]
[360155530,1746580247173,-450.0,0.00019579,2]
[360155531,1746580247182,-1064.58,0.00019579,2]
[360155532,1746580247192,-1064.58,0.00019579,2]
[360155533,1746580247201,-450.0,0.00019579,2]
[360155534,1746580247211,-183.56361355,0.00019579,2]
[360155535,1746580247220,-1166.74,0.00019579,2]
[360155536,1746580247229,-450.0,0.00019579,2]
[360155537,1746580247237,-450.0,0.00019579,2]
[360155538,1746580247245,-27523.8,0.00019579,2]
[360155539,1746580247254,-552.77,0.00019579,2]
[360155540,1746580247264,-552.77,0.00019579,2]
[360155541,1746580247273,-450.0,0.00019579,2]
[360155542,1746580247282,-450.0,0.00019579,2]
[360155543,1746580247292,-470.0,0.00019579,2]
[360155544,1746580247301,-556.66,0.00019579,2]
[360155545,1746580247312,-450.0,0.00019579,2]
[360155546,1746580247321,-450.0,0.00019579,2]
[360155547,1746580247331,-450.0,0.00019579,2]
[360155548,1746580247340,-450.0,0.00019579,2]
[360155549,1746580247350,-450.0,0.00019579,2]
[360155550,1746580247359,-38935.25,0.00019579,2]
[360155551,1746580247369,-38935.25,0.00019579,2]
[360155552,1746580247378,-1258.44,0.00019579,2]
[360155553,1746580247387,-589.31,0.00019579,2]
[360155554,1746580247397,-2108.63,0.00019579,2]
[360155555,1746580247406,-450.0,0.00019579,2]
[360155556,1746580247416,-2108.63,0.00019579,2]
[360155557,1746580247425,-450.0,0.00019579,2]
[360155558,1746580247434,-450.0,0.00019579,2]
[360155559,1746580247443,-450.0,0.00019579,2]
[360155560,1746580247452,-892.36,0.00019579,2]
[360155561,1746580247462,-892.36,0.00019579,2]
[360155562,1746580247474,-450.0,0.00019579,2]
[360155563,1746580247484,-450.0,0.00019579,2]
[360155564,1746580247493,-334.43553343,0.00019579,2]
[360155565,1746580247502,-557.1,0.00019579,2]
[360155566,1746580247513,-450.0,0.00019579,2]
[360155567,1746580247522,-557.1,0.00019579,2]
[360155568,1746580247532,-450.0,0.00019579,2]
[360155569,1746580247542,-450.0,0.00019579,2]
[360155570,1746580247552,-450.0,0.00019579,2]
[360155571,1746580247563,-450.0,0.00019579,2]
[360155572,1746580247572,-450.0,0.00019579,2]
[360155573,1746580247582,-1067.62,0.00019579,2]
[360155574,1746580247591,-1067.62,0.00019579,2]
[360155575,1746580247600,-450.0,0.00019579,2]
[360155576,1746580247609,-450.0,0.00019579,2]
[360155577,1746580247619,-504.88,0.00019579,2]
[360155578,1746580247629,-2130.62,0.00019579,2]
[360155579,1746580247638,-2130.62,0.00019579,2]
[360155580,1746580247647,-450.0,0.00019579,2]
[360155581,1746580247656,-450.0,0.00019579,2]
[360155582,1746580247665,-450.0,0.00019579,2]
[360155583,1746580247675,-450.0,0.00019579,2]
[360155584,1746580247684,-593.2,0.00019579,2]
[360155585,1746580247693,-593.2,0.00019579,2]
[360155586,1746580247703,-450.0,0.00019579,2]
[360155587,1746580247712,-450.0,0.00019579,2]
[360155588,1746580247721,-1431.28,0.00019579,2]
[360155589,1746580247731,-1623.66,0.00019579,2]
[360155590,1746580247740,-1623.66,0.00019579,2]
[360155591,1746580247750,-500.0,0.00019579,2]
[360155592,1746580247759,-2420.7,0.00019579,2]
[360155593,1746580247768,-450.0,0.00019579,2]
[360155594,1746580247778,-408.9,0.00019579,2]
[360155595,1746580247787,-450.0,0.00019579,2]
[360155596,1746580247796,-450.0,0.00019579,2]
[360155597,1746580247806,-501.14,0.00019579,2]
[360155598,1746580247817,-501.14,0.00019579,2]
[360155599,1746580247826,-450.0,0.00019579,2]
[360155600,1746580247836,-450.0,0.00019579,2]
[360155601,1746580247845,-1576.67,0.00019579,2]
[360155602,1746580247855,-450.0,0.00019579,2]
[360155603,1746580247864,-1576.67,0.00019579,2]
[360155604,1746580247874,-518.29,0.00019579,2]
[360155605,1746580247884,-518.29,0.00019579,2]
[360155606,1746580247894,-8916.0,0.00019579,2]
[360155607,1746580247903,-450.0,0.00019579,2]
[360155608,1746580247912,-450.0,0.00019579,2]
[360155609,1746580247923,-450.0,0.00019579,2]
[360155610,1746580247932,-530.0,0.00019579,2]
[360155611,1746580247942,-1906.69,0.00019579,2]
[360155612,1746580247951,-450.0,0.00019579,2]
[360155613,1746580247961,-1728.98,0.00019579,2]
[360155614,1746580247970,-450.0,0.00019579,2]
[360155615,1746580247979,-1728.98,0.00019579,2]
[360155616,1746580247989,-450.0,0.00019579,2]
[360155617,1746580247998,-326.0,0.00019579,2]
[360155618,1746580248007,-450.0,0.00019579,2]
[360155619,1746580248017,-450.0,0.00019579,2]
[360155620,1746580248027,-450.0,0.00019579,2]
[360155621,1746580248036,-450.0,0.00019579,2]
[360155622,1746580248046,-450.0,0.00019579,2]
[360155623,1746580248057,-450.0,0.00019579,2]
[360155624,1746580248066,-450.0,0.00019579,2]
[360155625,1746580248076,-805.5,0.00019579,2]
[360155626,1746580248085,-450.0,0.00019579,2]
[360155627,1746580248095,-481.22,0.00019579,2]
[360155628,1746580248105,-481.22,0.00019579,2]
[360155629,1746580248114,-450.0,0.00019579,2]
[360155630,1746580248124,-450.0,0.00019579,2]
[360155631,1746580248133,-510.0,0.00019579,2]
[360155632,1746580248143,-450.0,0.00019579,2]
[360155633,1746580248152,-450.0,0.00019579,2]
[360155634,1746580248162,-611.53,0.00019579,2]
[360155635,1746580248172,-450.0,0.00019579,2]
[360155636,1746580248181,-1729.6,0.00019579,2]
[360155637,1746580248191,-450.0,0.00019579,2]
[360155638,1746580248201,-212.63,0.00019579,2]
[360155639,1746580248211,-450.0,0.00019579,2]
[360155640,1746580248223,-450.0,0.00019579,2]
[360155641,1746580248233,-450.0,0.00019579,2]
[360155642,1746580248242,-450.0,0.00019579,2]
[360155643,1746580248252,-450.0,0.00019579,2]
[360155644,1746580248262,-450.0,0.00019579,2]
[360155645,1746580248272,-450.0,0.00019579,2]
[360155646,1746580248281,-1053.8,0.00019579,2]
[360155647,1746580248291,-703.27,0.00019579,2]
[360155648,1746580248300,-470.23,0.00019579,2]
[360155649,1746580248311,-703.27,0.00019579,2]
[360155650,1746580248320,-470.23,0.00019579,2]
[360155651,1746580248330,-450.0,0.00019579,2]
[360155652,1746580248339,-450.0,0.00019579,2]
[360155653,1746580248348,-860.93,0.00019579,2]
[360155654,1746580248476,-631.45,0.00019579,2]
[360155655,1746580248486,-860.93,0.00019579,2]
[360155656,1746580248496,-450.0,0.00019579,2]
[360155657,1746580248507,-450.0,0.00019579,2]
[360155658,1746580248516,-450.0,0.00019579,2]
[360155659,1746580248529,-450.0,0.00019579,2]
[360155660,1746580248538,-450.0,0.00019579,2]
[360155661,1746580248548,-1232.29,0.00019579,2]
[360155662,1746580248558,-450.0,0.00019579,2]
[360155663,1746580248568,-551.66518055,0.00019579,2]
[360155664,1746580248578,-450.0,0.00019579,2]
[360155665,1746580248587,-450.0,0.00019579,2]
[360155666,1746580248597,-530.0,0.00019579,2]
[360155667,1746580248606,-6870.69,0.00019579,2]
[360155668,1746580248616,-450.0,0.00019579,2]
[360155669,1746580248626,-816.19,0.00019579,2]
[360155670,1746580248635,-470.0,0.00019579,2]
[360155671,1746580248644,-450.0,0.00019579,2]
[360155672,1746580248654,-816.19,0.00019579,2]
[360155673,1746580248664,-450.0,0.00019579,2]
[360155674,1746580248673,-450.0,0.00019579,2]
[360155675,1746580248683,-450.0,0.00019579,2]
[360155676,1746580248692,-478.6,0.00019579,2]
[360155677,1746580248701,-244.98700334,0.00019579,2]
[360155678,1746580248711,-709.44,0.00019579,2]
[360155679,1746580248720,-450.0,0.00019579,2]
[360155680,1746580248730,-450.0,0.00019579,2]
[360155681,1746580248739,-450.0,0.00019579,2]
[360155682,1746580248749,-450.0,0.00019579,2]
[360155683,1746580248758,-450.0,0.00019579,2]
[360155684,1746580248768,-1823.15,0.00019579,2]
[360155685,1746580248777,-473.95,0.00019579,2]
[360155686,1746580248787,-450.0,0.00019579,2]
[360155687,1746580248796,-473.95,0.00019579,2]
[360155688,1746580248805,-1823.15,0.00019579,2]
[360155689,1746580248815,-450.0,0.00019579,2]
[360155690,1746580248825,-450.0,0.00019579,2]
[360155691,1746580248834,-450.0,0.00019579,2]
[360155692,1746580248843,-504.19274643,0.00019579,2]
[360155693,1746580248852,-454.36,0.00019579,2]
[360155694,1746580248861,-454.36,0.00019579,2]
[360155695,1746580248871,-450.0,0.00019579,2]
[360155696,1746580248880,-450.0,0.00019579,2]
[360155697,1746580248890,-2282.18,0.00019579,2]
[360155698,1746580248899,-450.0,0.00019579,2]